fUSD/lending_fUSD_20240104
["ID","MTS","AMOUNT","RATE_DAILY","PERIOD"]
[310116851,1704367838809,-285.75749362,0.00031778,2]
[310116852,1704367838818,-315.1596914,0.00031778,2]
[310116853,1704367838826,-315.1596914,0.00031778,2]
[310116854,1704367838836,-444.89917718,0.0003179,2]
[310116855,1704367838846,-150.0,0.00031799,2]
[310116857,1704367838856,-151.0,0.000318,7]
[310116859,1704367838867,-151.0,0.000318,7]
[310116861,1704367838877,-151.0,0.000318,7]
[310116863,1704367838886,-153.620545,0.000318,7]
[310116865,1704367838896,-151.0,0.000318,7]
[310116867,1704367838906,-1016.94337793,0.000318,4]
[310116869,1704367838918,-155.28165915,0.000318,4]
[310116872,1704367838927,-821.894807,0.000318,7]
[310116875,1704367838937,-821.894807,0.000318,7]
[310116877,1704367838947,-151.0,0.000318,7]
[310116879,1704367838956,-151.0,0.000318,7]
[310116881,1704367838965,-151.0,0.000318,7]
[310116883,1704367838974,-151.0,0.000318,7]
[310116885,1704367838983,-87.90800454,0.000318,7]
[310116913,1704367840928,-533.96922861,0.00030296,2]
[310116914,1704367840937,-63.09199546,0.000318,7]
[310116915,1704367840948,-685.64024499,0.000318,3]
[310116916,1704367840960,-831.35998389,0.000318,3]
[310116917,1704367840973,-461.64000211,0.000318,3]
[310116918,1704367841074,-539.21732997,0.000318,3]
[310116946,1704367843276,-2607.34119861,0.000318,3]
[310116948,1704367843289,-936.17033091,0.000318,3]
[310116956,1704367843394,-702.5190202,0.000318,3]
[310116957,1704367843461,-24482.36992866,0.000318,3]
[310116958,1704367843598,-166944.21611395,0.000318,3]
[310116988,1704367846315,-31854.51271106,0.00025983,2]
[310116990,1704367846327,-21742.85379101,0.00025983,2]
[310116997,1704367846377,-1164.9428467,0.00025983,2]
[310117000,1704367846397,-639.80832,0.00025983,2]
[310117005,1704367846470,-448.86925013,0.00025983,2]
[310117008,1704367846484,-510.41555221,0.00025983,2]
[310117012,1704367846515,-554.65086873,0.00025983,2]
[310117018,1704367846564,-68603.55626633,0.00025983,2]
[310117020,1704367846576,-887.18796229,0.00025983,2]
[310117022,1704367846587,-2439.59652341,0.00025983,2]
[310117024,1704367846600,-111890.70520813,0.00025983,2]
[310117027,1704367846609,-779.21873097,0.00030999,2]
[310117028,1704367846619,-21402.78391928,0.00031,3]
[310117031,1704367846631,-17806.83329922,0.00031,3]
[310117033,1704367846643,-2499.16971345,0.00031,3]
[310117035,1704367846655,-16432.23131766,0.00031,3]
[310117038,1704367846675,-10242.54525926,0.00031,3]
[310117040,1704367846687,-8806.69738045,0.00031,3]
[310117043,1704367846698,-13948.39224903,0.00031,3]
[310117045,1704367846710,-878.9193687,0.00031,3]
[310117047,1704367846727,-4544.1647298,0.00031,3]
[310117051,1704367846739,-10786.0635529,0.00031,3]
[310117054,1704367846750,-14716.30464352,0.00031,3]
[310117058,1704367846778,-306.67142179,0.00031,3]
[310117064,1704368366281,448.0,0.0003,120]
[310117110,1704369031612,-155.0,0.00023822,2]
[310117111,1704369031623,-709.68441708,0.00023823,2]
[310117112,1704369031669,-640.06759,0.00023823,2]
[310117113,1704369031723,-10.10135115,0.00023823,2]
[310117114,1704369031733,-206.0,0.00023824,2]
[310117115,1704369031743,-3117.72174705,0.00023891,2]
[310117116,1704369031753,-2375.54496224,0.00023892,2]
[310117117,1704369031763,-278.04335294,0.0002399,2]
[310117118,1704369031772,-150.0,0.00023991,2]
[310117119,1704369031784,-158.26459566,0.00023992,2]
[310117120,1704369031795,-328.72682861,0.00024596,2]
[310117121,1704369031807,-158.26459558,0.0002476,2]
[310117122,1704369031817,-482.276,0.00025,2]
[310117123,1704369031831,-150.0,0.000252,2]
[310117124,1704369031841,-158.26459558,0.00025527,2]
[310117125,1704369031850,-12747.0,0.000256,2]
[310117126,1704369031859,-1373.0,0.000256,2]
[310117127,1704369031867,-499.99,0.000256,2]
[310117128,1704369031877,-353.7502223,0.00025982,2]
[310117129,1704369031885,-306.38,0.00025982,2]
[310117130,1704369031894,-334.1039,0.00025983,2]
[310117131,1704369031903,-2730.61,0.00026189,2]
[310117132,1704369031912,-551.62,0.00026218,2]
[310117133,1704369031922,-158.26459558,0.00026295,2]
[310117134,1704369031931,-1250.0,0.00027,3]
[310117135,1704369031941,-158.26459558,0.00027062,2]
[310117136,1704369031951,-385.94271584,0.0002728,2]
[310117138,1704369031961,-250.0,0.00027311,2]
[310117140,1704369031971,-561.91,0.00027377,2]
[310117142,1704369031979,-150.0,0.00027432,2]
[310117144,1704369031987,-1691.28,0.00027515,2]
[310117146,1704369031996,-491.17492252,0.00027548,2]
[310117148,1704369032005,-220.26666446,0.00027556,2]
[310117150,1704369032015,-698.97729071,0.00027556,2]
[310117152,1704369032025,-756.00880381,0.00027556,2]
[310117154,1704369032034,-337.93099748,0.00027557,2]
[310117156,1704369032044,-831.62,0.00027558,2]
[310117157,1704369032055,-23900.0,0.00027558,2]
[310117158,1704369032065,-9323.79,0.00027558,2]
[310117159,1704369032075,-150.0,0.00027558,2]
[310117160,1704369032087,-250.0,0.00027565,2]
[310117161,1704369032098,-195.62,0.00027589,2]
[310117162,1704369032111,-3267.07,0.00027714,2]
[310117163,1704369032122,-195.60181115,0.00027786,2]
[310117164,1704369032132,-2000.0,0.00027822,2]
[310117165,1704369032144,-158.26459558,0.0002783,2]
[310117166,1704369032157,-591.38,0.00027837,2]
[310117167,1704369032168,-804.38,0.0002784,2]
[310117168,1704369032179,-206.0,0.00027844,8]
[310117169,1704369032190,-1926.4726,0.00027856,2]
[310117170,1704369032201,-152.82,0.000279,2]
[310117171,1704369032212,-500.0,0.000279,2]
[310117172,1704369032222,-200.0,0.00027938,2]
[310117173,1704369032234,-3596.44,0.00027945,2]
[310117174,1704369032246,-154.09,0.00027955,2]
[310117175,1704369032256,-13863.36,0.00027956,2]
[310117176,1704369032266,-497.21,0.00028002,2]
[310117177,1704369032275,-200.0,0.00028032,2]
[310117178,1704369032286,-200.0,0.00028141,2]
[310117179,1704369032296,-152.82,0.00028263,2]
[310117180,1704369032307,-154.09,0.00028319,2]
[310117181,1704369032318,-561.91,0.00028356,2]
[310117182,1704369032330,-153.66,0.0002844,2]
[310117183,1704369032340,-151.63,0.00028444,2]
[310117184,1704369032354,-551.62,0.00028482,2]
[310117185,1704369032366,-168.35,0.00028526,2]
[310117186,1704369032377,-158.26459558,0.00028597,2]
[310117187,1704369032390,-152.82,0.00028625,2]
[310117188,1704369032401,-1712.08,0.00028674,10]
[310117189,1704369032411,-154.09,0.00028683,2]
[310117190,1704369032422,-153.66,0.00028737,2]
[310117191,1704369032432,-160.3,0.00028905,2]
[310117192,1704369032442,-152.82,0.00028988,2]
[310117193,1704369032452,-1300.0,0.00029,3]
[310117194,1704369032463,-153.66,0.00029034,2]
[310117195,1704369032474,-154.09,0.00029048,2]
[310117196,1704369032485,-323.40330703,0.00029224,2]
[310117197,1704369032496,-153.66,0.00029331,2]
[310117198,1704369032506,-561.91,0.00029334,2]
[310117199,1704369032517,-152.82,0.00029351,2]
[310117200,1704369032528,-158.26459558,0.00029365,2]
[310117201,1704369032538,-154.09,0.00029412,2]
[310117202,1704369032548,-100000.0,0.00029421,2]
[310117203,1704369032558,-2770.37255743,0.00029519,2]
[310117204,1704369032569,-1702.94991301,0.00029519,2]
[310117205,1704369032578,-210.92031935,0.00029519,2]
[310117206,1704369032589,-3611.21310011,0.00029519,2]
[310117207,1704369032600,-576.50989765,0.00029519,2]
[310117208,1704369032610,-1190.85,0.0002952,2]
[310117209,1704369032621,-5258.88141572,0.0002952,2]
[310117210,1704369032630,-243.39345415,0.0002952,2]
[310117211,1704369032640,-882.96088417,0.0002952,2]
[310117212,1704369032650,-78556.0408,0.00029521,2]
[310117213,1704369032660,-153.66,0.00029628,2]
[310117214,1704369032670,-153.66,0.00029926,2]
[310117215,1704369032680,-153.76193235,0.0003,2]
[310117216,1704369032691,-155.0,0.0003,2]
[310117217,1704369032702,-580.71892747,0.0003,2]
[310117218,1704369032712,-158.26459558,0.00030132,2]
[310117219,1704369032722,-234.40104,0.00030198,2]
[310117220,1704369032732,-206.01086309,0.0003021,2]
[310117221,1704369032742,-153.66,0.00030223,2]
[310117222,1704369032753,-234.40104,0.00030298,2]
[310117223,1704369032763,-561.91,0.00030313,2]
[310117224,1704369032774,-234.40104,0.00030398,2]
[310117225,1704369032784,-234.40104,0.00030498,2]
[310117226,1704369032793,-153.66,0.0003052,2]
[310117227,1704369032803,-10091.8916,0.0003059,2]
[310117228,1704369032813,-234.40104,0.00030598,2]
[310117229,1704369032823,-436.50428165,0.00030598,2]
[310117230,1704369032832,-163629.0,0.0003069,2]
[310117231,1704369032842,-234.40104,0.00030698,2]
[310117232,1704369032853,-551.62,0.00030746,2]
[310117233,1704369032863,-500.0,0.0003079,10]
[310117234,1704369032874,-234.40104,0.00030798,2]
[310117235,1704369032885,-153.66,0.00030817,2]
[310117236,1704369032895,-234.40104,0.00030898,2]
[310117237,1704369032905,-6126.2529,0.000309,2]
[310117238,1704369032914,-946.13016376,0.000309,2]
[310117239,1704369032923,-1162.99508526,0.000309,2]
[310117240,1704369032932,-4244.88,0.000309,2]
[310117241,1704369032942,-158.26459558,0.000309,2]
[310117242,1704369032951,-986.39266663,0.000309,2]
[310117243,1704369032962,-176.74863773,0.000309,2]
[310117244,1704369032971,-436.50428165,0.000309,2]
[310117245,1704369032980,-153.84,0.0003095,2]
[310117246,1704369032989,-1005.87119726,0.0003098,2]
[310117247,1704369032999,-5672.07570353,0.0003098,2]
[310117248,1704369033010,-800.0,0.00030986,2]
[310117249,1704369033020,-222.44958859,0.00030989,2]
[310117250,1704369033032,-9287.0,0.0003099,3]
[310117251,1704369033042,-532.75701415,0.00030997,2]
[310117252,1704369033052,-341.19720164,0.00030997,2]
[310117253,1704369033064,-245.81988917,0.00030998,4]
[310117254,1704369033082,-155.0,0.00030998,4]
[310117255,1704369033096,-234.40104,0.00030998,2]
[310117256,1704369033106,-61628.97,0.00030999,3]
[310117257,1704369033115,-165.86911865,0.00030999,4]
[310117258,1704369033125,-13730.91815841,0.00030999,2]
[310117261,1704369037512,-1094.09681909,0.00030999,2]
[310117262,1704369037524,-379.08348833,0.00030999,2]
[310117277,1704369037795,-2108.06372,0.00030999,2]
[310117278,1704369037808,-2270.64844071,0.00030999,2]
[310117279,1704369037820,-1120.6283,0.00030999,2]
[310117280,1704369037838,-1087.49998676,0.00030999,2]
[310117281,1704369037958,-1273.19236374,0.00030999,2]
[310117289,1704369039997,-2032.5,0.00030999,2]
[310117290,1704369040055,-650.0,0.00030999,2]
[310117299,1704369042485,-1008.52847505,0.00030989,10]
[310117300,1704369042497,-418.20152495,0.00030989,10]
[310117301,1704369042507,-114.5554892,0.00030999,2]
[310117302,1704369042545,-341.04,0.00030999,2]
[310117303,1704369042557,-1352.6025662,0.00030999,2]
[310117304,1704369042569,-1606.16104098,0.00030999,2]
[310117305,1704369042581,-364.49491157,0.00030999,2]
[310117306,1704369042597,-1282.89966607,0.00030999,2]
[310117307,1704369042620,-324.50393721,0.00030999,2]
[310117308,1704369042646,-367.42522305,0.00030999,2]
[310117309,1704369042731,-366.65397031,0.00030999,2]
[310117310,1704369042744,-1769.17038413,0.00030999,2]
[310117311,1704369042846,-680.3546727,0.00030999,2]
[310117312,1704369042876,-570.35611864,0.00030999,2]
[310117313,1704369042889,-1317.63765125,0.00030999,2]
[310117342,1704369045993,-233.61836211,0.00030998,4]
[310117343,1704369046002,-182.45457077,0.00030998,4]
[310117344,1704369046014,-11766.35627298,0.00030999,2]
[310117345,1704369046032,-637.48600593,0.00030999,2]
[310117346,1704369070098,1976336.80266884,0.00023,2]
[310117348,1704369229621,380083.76036727,0.00023,2]
[310117349,1704369258055,6451.0,0.00029,30]
[310117350,1704369282880,6451.0,0.00029,30]
[310117351,1704369364259,206.0,0.00022824,2]
[310117352,1704369365761,46028.71627179,0.00029,30]
[310117364,1704370231648,-1848.60966923,0.00023652,2]
[310117365,1704370231658,-514.79241288,0.00023652,2]
[310117366,1704370231668,-3117.72174705,0.00023653,2]
[310117367,1704370231677,-570.42,0.00023654,2]
[310117368,1704370231686,-159.21654015,0.00023665,2]
[310117369,1704370231696,-486.05483273,0.00023666,2]
[310117370,1704370231706,-150.0,0.00023666,2]
[310117371,1704370231715,-245.94496958,0.00023667,2]
[310117372,1704370231725,-11647.7685823,0.00023667,2]
[310117373,1704370231734,-25142.46520767,0.00023668,2]
[310117374,1704370231743,-1253.49016719,0.00023669,2]
[310117375,1704370231753,-1804.73115479,0.00023669,2]
[310117376,1704370231763,-158.35510719,0.00023671,2]
[310117377,1704370231773,-1256.41523473,0.00023767,2]
[310117378,1704370231785,-150.0,0.00023769,2]
[310117379,1704370231794,-636.94341676,0.00023802,2]
[310117380,1704370231804,-206.0,0.00024542,2]
[310117381,1704370231814,-158.35510714,0.00024876,2]
[310117382,1704370231823,-530.22,0.0002547,2]
[310117383,1704370231833,-1845.0,0.0002547,2]
[310117384,1704370231842,-833.0,0.0002547,2]
[310117385,1704370231851,-252.971,0.0002547,2]
[310117386,1704370231861,-2265.0,0.0002547,2]
[310117387,1704370231870,-4178.0,0.0002547,2]
[310117388,1704370231879,-658.56926191,0.0002547,2]
[310117389,1704370231912,-898.55402957,0.0002547,2]
[310117390,1704370231951,-974.37475308,0.0002547,2]
[310117391,1704370231984,-943.93187355,0.0002547,2]
[310117392,1704370231996,-481.13236969,0.0002547,2]
[310117394,1704370232018,-2121.8007122,0.0002547,2]
[310117396,1704370232027,-1026.0,0.0002547,2]
[310117399,1704370232038,-12877.0,0.000256,2]
[310117400,1704370232048,-356.49,0.000256,2]
[310117403,1704370232057,-612.26,0.000256,2]
[310117404,1704370232066,-415.81,0.0002562,2]
[310117407,1704370232076,-566.1,0.00025829,2]
[310117410,1704370232086,-570.42,0.00025918,2]
[310117412,1704370232095,-155.32,0.00025954,2]
[310117414,1704370232105,-753.11,0.00025989,2]
[310117416,1704370232114,-711.86,0.00026079,2]
[310117418,1704370232124,-150.0,0.00026079,2]
[310117420,1704370232134,-158.35510714,0.00026081,2]
[310117422,1704370232144,-173.75,0.00026101,2]
[310117424,1704370232154,-173.75,0.00026172,2]
[310117426,1704370232163,-173.75,0.00026244,2]
[310117428,1704370232173,-173.75,0.00026315,2]
[310117430,1704370232182,-198.05,0.00026351,2]
[310117432,1704370232191,-173.75,0.00026387,2]
[310117434,1704370232200,-173.75,0.00026459,2]
[310117436,1704370232209,-173.75,0.0002653,2]
[310117438,1704370232219,-173.75,0.00026602,2]
[310117440,1704370232229,-173.75,0.00026673,2]
[310117442,1704370232239,-173.75,0.00026745,2]
[310117443,1704370232249,-499.99,0.00026774,2]
[310117444,1704370232259,-173.75,0.00026817,2]
[310117445,1704370232269,-1374.66396,0.00026882,2]
[310117446,1704370232279,-23900.0,0.00026883,2]
[310117447,1704370232291,-173.75,0.00026888,2]
[310117448,1704370232301,-173.75,0.0002696,2]
[310117449,1704370232310,-1250.0,0.00027,3]
[310117450,1704370232321,-173.75,0.00027031,2]
[310117451,1704370232331,-155.0,0.00027055,2]
[310117452,1704370232340,-317.76205848,0.00027055,2]
[310117453,1704370232350,-711.86,0.00027057,2]
[310117454,1704370232359,-643.51,0.000271,2]
[310117455,1704370232369,-173.75,0.00027103,2]
[310117456,1704370232379,-566.1,0.00027121,2]
[310117457,1704370232388,-173.75,0.00027175,2]
[310117458,1704370232397,-173.75,0.00027246,2]
[310117459,1704370232407,-158.35510714,0.00027286,2]
[310117460,1704370232416,-173.75,0.00027318,2]
[310117461,1704370232426,-173.75,0.00027389,2]
[310117462,1704370232436,-250.0,0.00027397,2]
[310117463,1704370232445,-173.75,0.00027461,2]
[310117464,1704370232455,-249.5354655,0.00027476,2]
[310117465,1704370232466,-393.27040614,0.00027476,2]
[310117466,1704370232476,-155.32,0.00027582,2]
[310117467,1704370232487,-253.31521492,0.00027613,2]
[310117468,1704370232497,-213.71015852,0.00027652,3]
[310117469,1704370232507,-8570.1604,0.00027656,2]
[310117470,1704370232517,-66035.93693339,0.00027656,2]
[310117471,1704370232531,-2805.78287957,0.00027656,2]
[310117472,1704370232613,-358.1422689,0.00027656,2]
[310117473,1704370232625,-112149.19081814,0.00027656,2]
[310117474,1704370232635,-345.908828,0.00027752,2]
[310117475,1704370232645,-156.09764376,0.00027752,2]
[310117476,1704370232654,-209.02156942,0.00027752,2]
[310117477,1704370232664,-332.87670128,0.00027752,2]
[310117478,1704370232673,-398.11199633,0.00027752,2]
[310117479,1704370232683,-6819.75777737,0.00027753,2]
[310117480,1704370232693,-180.75274427,0.00027754,2]
[310117481,1704370232702,-1721.34100193,0.00027754,2]
[310117482,1704370232712,-381.20683443,0.00027754,2]
[310117483,1704370232721,-1037.68818331,0.00027754,2]
[310117484,1704370232731,-519.21117705,0.00027754,2]
[310117485,1704370232740,-459.49182577,0.00027754,2]
[310117486,1704370232749,-210.12052327,0.00027754,2]
[310117487,1704370232759,-156.40921071,0.00027754,2]
[310117488,1704370232768,-1064.13245459,0.00027754,2]
[310117489,1704370232777,-2036.62332821,0.00027754,2]
[310117490,1704370232789,-199.42011325,0.00027754,2]
[310117491,1704370232798,-341.88104445,0.00027754,2]
[310117492,1704370232807,-155.4089809,0.00027754,2]
[310117493,1704370232818,-1190.94276319,0.00027754,2]
[310117494,1704370232827,-5255.48268159,0.00027754,2]
[310117495,1704370232836,-286.66581687,0.00027754,2]
[310117496,1704370232846,-155.70894751,0.00027754,2]
[310117497,1704370232856,-1431.24682515,0.00027754,2]
[310117498,1704370232866,-1263.44342288,0.00027754,2]
[310117499,1704370232876,-611.70877088,0.00027754,2]
[310117500,1704370232885,-1735.72134348,0.00027754,2]
[310117501,1704370232895,-155.53816687,0.00027754,2]
[310117502,1704370232905,-251.90508961,0.00027754,2]
[310117503,1704370232915,-186.65200998,0.00027754,2]
[310117504,1704370232924,-155.89714604,0.00027754,2]
[310117505,1704370232934,-209.24580407,0.00027754,2]
[310117506,1704370232945,-2309.82978544,0.00027754,2]
[310117507,1704370232955,-201.43329872,0.00027754,2]
[310117508,1704370232964,-155.9102428,0.00027754,2]
[310117509,1704370232973,-529.58502381,0.00027754,2]
[310117510,1704370232983,-156.27710705,0.00027754,2]
[310117511,1704370232992,-267.03183216,0.00027754,2]
[310117512,1704370233002,-182.68973358,0.00027754,2]
[310117513,1704370233011,-720.89351567,0.00027754,2]
[310117514,1704370233021,-301.03896076,0.00027754,2]
[310117515,1704370233030,-389.46997806,0.00027754,2]
[310117516,1704370233042,-158.61752157,0.00027754,2]
[310117517,1704370233051,-155.6062446,0.00027754,2]
[310117518,1704370233060,-1772.14818825,0.00027754,2]
[310117519,1704370233070,-2133.494995,0.00027754,2]
[310117520,1704370233079,-245.44379719,0.00027754,2]
[310117521,1704370233091,-357.81346532,0.00027754,2]
[310117522,1704370233100,-234.27749437,0.00027755,2]
[310117523,1704370233110,-159.93632152,0.00027755,2]
[310117524,1704370233119,-156.91262656,0.00027755,2]
[310117525,1704370233128,-285.53311155,0.00027755,2]
[310117526,1704370233137,-24048.55181739,0.00027756,2]
[310117527,1704370233150,-3698.8629852,0.00027756,2]
[310117528,1704370233161,-4482.44869741,0.00027756,2]
[310117529,1704370233170,-219.9229,0.00027756,2]
[310117530,1704370233180,-4841.3361,0.00027756,2]
[310117531,1704370233189,-206.0,0.00027765,7]
[310117532,1704370233198,-165.86911865,0.00027855,2]
[310117533,1704370233207,-3411.37,0.00027945,2]
[310117534,1704370233216,-201.64373755,0.00028,2]
[310117535,1704370233224,-711.86,0.00028036,2]
[310117536,1704370233233,-570.42,0.00028182,2]
[310117537,1704370233243,-566.1,0.00028412,2]
[310117538,1704370233253,-158.35510714,0.0002849,2]
[310117539,1704370233264,-213.71015847,0.0002853,4]
[310117540,1704370233274,-352.09,0.00028733,2]
[310117541,1704370233285,-356.49,0.000288,2]
[310117542,1704370233295,-181.1,0.00028826,2]
[310117543,1704370233304,-800.0,0.00028849,2]
[310117544,1704370233313,-175.76683301,0.000289,2]
[310117545,1704370233323,-4244.88,0.000289,2]
[310117546,1704370233333,-1300.0,0.00029,3]
[310117547,1704370233342,-64345.63734781,0.00029,2]
[310117548,1704370233356,-311.44051922,0.00029,2]
[310117549,1704370233420,-590.0394705,0.00029,2]
[310117550,1704370233436,-863.53929912,0.00029,2]
[310117561,1704370237705,-398.4065,0.00023569,2]
[310117562,1704370237715,-534.71887905,0.00027654,2]
[310117563,1704370237725,-534.71887904,0.00028466,2]
[310117564,1704370237735,-7581.00091363,0.00029,2]
[310117565,1704370237819,-257.60914271,0.00029,2]
[310117566,1704370237876,-55021.52586709,0.00029,2]
[310117567,1704370237886,-155.7943997,0.00029,2]
[310117568,1704370237896,-711.86,0.00029014,2]
[310117569,1704370237907,-155.32,0.00029209,2]
[310117570,1704370237922,-175.766833,0.000294,2]
[310117571,1704370237932,-213.71015847,0.00029408,4]
[310117572,1704370237941,-424.6498,0.00029421,3]
[310117573,1704370237951,-762.7952,0.00029421,2]
[310117574,1704370237963,-17597.0645,0.00029421,2]
[310117575,1704370237972,-158.35,0.00029688,2]
[310117576,1704370237981,-158.35510714,0.00029695,2]
[310117577,1704370237991,-566.1,0.00029704,2]
[310117578,1704370238001,-1332.8563,0.00029757,2]
[310117579,1704370238010,-181.1,0.00029876,2]
[310117580,1704370238020,-175.766833,0.000299,2]
[310117581,1704370238030,-711.86,0.00029993,2]
[310117582,1704370238039,-2070.05851404,0.0003,7]
[310117583,1704370238051,-580.71892747,0.0003,2]
[310117584,1704370238061,-155.0,0.0003,2]
[310117585,1704370238070,-800.0033223,0.0003,4]
[310117586,1704370238080,-175.77,0.0003,2]
[310117587,1704370238090,-155.0,0.0003,2]
[310117588,1704370238099,-206.82,0.00030034,2]
[310117589,1704370238155,-295.42604791,0.000301,2]
[310117590,1704370238165,-153.84,0.00030137,2]
[310117591,1704370238175,-345.40104,0.00030198,2]
[310117593,1704370238185,-206.01086309,0.0003021,2]
[310117595,1704370238194,-213.71015847,0.00030286,5]
[310117597,1704370238204,-345.40104,0.00030298,2]
[310117599,1704370238213,-345.40104,0.00030398,2]
[310117601,1704370238222,-175.766833,0.000304,2]
[310117603,1704370238231,-570.42,0.00030446,2]
[310117605,1704370238240,-158.35,0.00030486,2]
[310117606,1704370238250,-643.51,0.00030488,2]
[310117607,1704370238259,-345.40104,0.00030498,2]
[310117608,1704370238268,-175.77,0.00030548,2]
[310117609,1704370238278,-345.40104,0.00030598,2]
[310117610,1704370238287,-280.20148086,0.00030688,4]
[310117611,1704370238300,-345.40104,0.00030698,2]
[310117613,1704370238310,-204.99891904,0.000307,3]
[310117615,1704370238320,-222.44958859,0.0003079,2]
[310117617,1704370238330,-500.0,0.0003079,10]
[310117619,1704370238339,-345.40104,0.00030798,2]
[310117621,1704370238350,-380166.17649591,0.000308,2]
[310117622,1704370238360,-178.69908155,0.000308,2]
[310117623,1704370238370,-155.32,0.00030837,2]
[310117624,1704370238381,-150.0,0.00030856,2]
[310117625,1704370238391,-345.40104,0.00030898,2]
[310117626,1704370238404,-25601.4957,0.00030899,2]
[310117627,1704370238415,-484.2052,0.00030899,2]
[310117628,1704370238426,-4881.1488,0.00030899,2]
[310117629,1704370238436,-15841.0888,0.00030899,2]
[310117630,1704370238445,-500.0,0.000309,2]
[310117631,1704370238456,-6126.2529,0.000309,2]
[310117632,1704370238466,-175.12451084,0.000309,2]
[310117633,1704370238475,-175.766833,0.000309,2]
[310117634,1704370238485,-55555.0,0.000309,3]
[310117635,1704370238494,-739.705326,0.000309,7]
[310117636,1704370238504,-739.705326,0.000309,7]
[310117637,1704370238515,-151.0,0.000309,7]
[310117638,1704370238524,-534.37454396,0.000309,2]
[310117639,1704370238534,-158.35510714,0.000309,2]
[310117640,1704370238546,-10756.44677844,0.000309,2]
[310117641,1704370238556,-521.15211141,0.000309,18]
[310117642,1704370238565,-279.218048,0.000309,7]
[310117643,1704370238576,-151.0,0.000309,7]
[310117644,1704370238585,-1323.62747226,0.000309,2]
[310117645,1704370238596,-133921.70884556,0.000309,2]
[310117646,1704370238606,-181.1,0.00030925,2]
[310117647,1704370238616,-921.28926595,0.00030952,2]
[310117648,1704370238626,-711.86,0.00030971,2]
[310117649,1704370238635,-206.0,0.00030989,12]
[310117650,1704370238646,-222.44958859,0.0003099,2]
[310117651,1704370238658,-566.1,0.00030995,2]
[310117652,1704370238667,-18639.92656527,0.00030995,2]
[310117653,1704370238678,-151.0,0.00030997,7]
[310117654,1704370238689,-151.0,0.00030997,7]
[310117655,1704370238698,-764.13941335,0.00030997,2]
[310117656,1704370238708,-360.87448358,0.00030997,4]
[310117657,1704370238719,-234.26388092,0.00030997,2]
[310117658,1704370238730,-945.66692111,0.00030997,2]
[310117659,1704370238740,-301.09710541,0.00030997,2]
[310117660,1704370238750,-930.45910605,0.00030997,2]
[310117661,1704370238761,-155.0,0.00030997,2]
[310117662,1704370238772,-269.83626346,0.00030997,2]
[310117663,1704370238782,-2727.937024,0.00030997,2]
[310117664,1704370238792,-18639.92656527,0.00030997,2]
[310117665,1704370238803,-5674.24741686,0.00030998,4]
[310117666,1704370238815,-155.0,0.00030998,4]
[310117667,1704370238825,-25767.73051586,0.00030998,4]
[310117668,1704370238834,-234.40104,0.00030998,2]
[310117669,1704370238844,-3936.85831934,0.00030999,6]
[310117670,1704370238853,-171.25818055,0.00030999,2]
[310117671,1704370238863,-1690.50234833,0.00030999,2]
[310117672,1704370238872,-300.0,0.00030999,2]
[310117673,1704370238882,-300.0,0.00030999,2]
[310117674,1704370238891,-296.41613783,0.00030999,2]
[310117675,1704370238901,-214.6189892,0.00030999,4]
[310117676,1704370238910,-544.4139,0.00030999,2]
[310117677,1704370238920,-454.4013503,0.00030999,4]
[310117678,1704370238929,-500.0,0.00030999,4]
[310117679,1704370238939,-311.37968535,0.00030999,4]
[310117680,1704370238948,-151.0,0.00031,7]
[310117681,1704370238958,-151.0,0.00031,7]
[310117682,1704370238967,-151.0,0.00031,7]
[310117683,1704370238977,-151.0,0.00031,7]